Workbook

Sheet OB RFR
L3: SMSA Outbound Request for Rates
N5: Owner/ Department : IBU-KWT, Sales
A7: KWT Sales - Request for Rates (RFR)
A9: Customer Details
A10: New A/c | B10: YES | E10: Existing Account Number | J10: Company Name | N10: Al Nawwwar Wholesale And Retail co
A11: Main Contact Name | C11: Mr. Aliasgar | J11: Company Activity | N11: SkinCare products/Cosmetics
A12: Position | C12: Managing Director | J12: P.O Box | O12: Website
A13: Email Id | C13: ali.asgar@nawwwar.com | J13: Pin Code | O13: CR.No | Q13: 2022/8848
A14: Telephone | B14: 97465214 | E14: Fax No | G14: NIL | J14: Physical Location | N14: Hawally, Bin Alkhaldoun Street , Lulwa Complex
A16: Customer Shipping Profile & Monthly Revenue Forecast
A17: Product / Dest | B17: Zone 1 | D17: Zone 2 | F17: Zone 3 | H17: Zone 4 | J17: Zone 5 | L17: Zone 6 | N17: Zone 7 | P17: Zone 8 | R17: Zone 9 | T17: Zone 10
B18: Vol/Wk | C18: Price | D18: Vol/Wk | E18: Price | F18: Vol/Wk | G18: Price | H18: Vol/Wk | I18: Price | J18: Vol/Wk | K18: Price | L18: Vol/Wk | M18: Price | N18: Vol/Wk | O18: Price | P18: Vol/Wk | Q18: Price | R18: Vol/Wk | S18: Price | T18: Vol/Wk | U18: Price
A19: Intl Docs (SIDX) | B19: 0 | C19: =+B19*B21*B36 -> 0 | D19: 0 | E19: =+D19*D21*D36 -> 0 | F19: 0 | G19: =+F19*F21*F36 -> 0 | H19: 0 | I19: =+H19*H21*H36 -> 0 | J19: 0 | K19: =+J19*J21*J36 -> 0 | L19: 0 | M19: =+L19*L21*L36 -> 0 | N19: 0 | O19: =+N19*N21*N36 -> 0 | P19: 0 | Q19: =+P19*P21*P36 -> 0 | R19: 0 | S19: =+R19*R21*R36 -> 0 | T19: 0 | U19: =+T19*T21*T36 -> 0
A20: Intl Par (SIND) | B20: 30 | C20: =+B20*B22*B40 -> 675.835875 | D20: 20 | E20: =+D20*D22*D40 -> 343.7005 | F20: 0 | G20: =+F20*F22*F40 -> 0 | H20: 0 | I20: =+H20*H22*H40 -> 0 | J20: 0 | K20: =+J20*J22*J40 -> 0 | L20: 0 | M20: =+L20*L22*L40 -> 0 | N20: 0 | O20: =+N20*N22*N40 -> 0 | P20: 0 | Q20: =+P20*P22*P40 -> 0 | R20: 0 | S20: =+R20*R22*R40 -> 0 | T20: 0 | U20: =+T20*T22*T40 -> 0
A21: Avg Wt. (SIDX) | B21: 1 | D21: 1 | F21: 1 | H21: 1 | J21: 1 | L21: 1 | N21: 1 | P21: 1 | R21: 1 | T21: 1
A22: Avg Wt. (SIND) | B22: 1.5 | D22: 1 | F22: 1 | H22: 1 | J22: 1 | L22: 1 | N22: 1 | P22: 1 | R22: 1 | T22: 1
P23: Totlal Revenue (KWD) | S23: =+(C19+C20+E19+E20+G19+G20+I19+I20+K19+K20+M19+M20+O19+O20+Q19+Q20+S19+S20+U19+U20)*4 -> 4078.1455
A24: Requested International Rates
A25: Product/Dest | B25: Zone 1 | C25: % | D25: Zone 2 | E25: % | F25: Zone 3 | G25: % | H25: Zone 4 | I25: % | J25: Zone 5 | K25: % | L25: Zone 6 | M25: % | N25: Zone 7 | O25: % | P25: Zone 8 | Q25: % | R25: Zone 9 | S25: % | T25: Zone 10 | U25: %
B26: =+Tariff!$E$26 -> KWT/OB/GMT | D26: =+Tariff!$E$26 -> KWT/OB/GMT | F26: =+Tariff!$E$26 -> KWT/OB/GMT | H26: =+Tariff!$E$26 -> KWT/OB/GMT | J26: =+Tariff!$E$26 -> KWT/OB/GMT | L26: =+Tariff!$E$26 -> KWT/OB/GMT | N26: =+Tariff!$E$26 -> KWT/OB/GMT | P26: =+Tariff!$E$26 -> KWT/OB/GMT | R26: =+Tariff!$E$26 -> KWT/OB/GMT | T26: =+Tariff!$E$26 -> KWT/OB/GMT
B27: Price | D27: Price | F27: Price | H27: Price | J27: Price | L27: Price | N27: Price | P27: Price | R27: Price | T27: Price
A28: SMSA Intl Doc (SIDX) &Intl Non Docs (SIND)
A29: 0.5 kg | B29: =Tariff!E3 -> 5.09795 | D29: =Tariff!F3 -> 5.9648875 | F29: =Tariff!G3 -> 6.2634 | H29: =Tariff!G3 -> 6.2634 | J29: =Tariff!H3 -> 6.7013375 | L29: =Tariff!I3 -> 8.376225 | N29: =Tariff!J3 -> 8.7945 | P29: =Tariff!K3 -> 10.1154625 | R29: =+Tariff!L3 -> 11.43285 | T29: =+Tariff!M3 -> 0
A30: 1.0 kg | B30: =Tariff!E4 -> 5.544825 | D30: =Tariff!F4 -> 6.47075 | F30: =Tariff!G4 -> 6.7942875 | H30: =Tariff!G4 -> 6.7942875 | J30: =Tariff!H4 -> 7.2697625 | L30: =Tariff!I4 -> 9.08765 | N30: =Tariff!J4 -> 9.541675 | P30: =Tariff!K4 -> 10.97525 | R30: =+Tariff!L4 -> 12.4034625 | T30: =+Tariff!M4 -> 0
A31: 1.5 kg | B31: =Tariff!E5 -> 5.9917 | D31: =Tariff!F5 -> 6.9766125 | F31: =Tariff!G5 -> 7.325175 | H31: =Tariff!G5 -> 7.325175 | J31: =Tariff!H5 -> 7.8381875 | L31: =Tariff!I5 -> 9.799075 | N31: =Tariff!J5 -> 10.28885 | P31: =Tariff!K5 -> 11.8350375 | R31: =+Tariff!L5 -> 13.374075 | T31: =+Tariff!M5 -> 0
A32: 2.0 kg | B32: =Tariff!E6 -> 6.438575 | D32: =Tariff!F6 -> 7.482475 | F32: =Tariff!G6 -> 7.8560625 | H32: =Tariff!G6 -> 7.8560625 | J32: =Tariff!H6 -> 8.4066125 | L32: =Tariff!I6 -> 10.5105 | N32: =Tariff!J6 -> 11.036025 | P32: =Tariff!K6 -> 12.694825 | R32: =+Tariff!L6 -> 14.3446875 | T32: =+Tariff!M6 -> 0
A33: 2.5 kg | B33: =Tariff!E7 -> 6.88545 | D33: =Tariff!F7 -> 7.9883375 | F33: =Tariff!G7 -> 8.38695 | H33: =Tariff!G7 -> 8.38695 | J33: =Tariff!H7 -> 8.9750375 | L33: =Tariff!I7 -> 11.221925 | N33: =Tariff!J7 -> 11.7832 | P33: =Tariff!K7 -> 13.5546125 | R33: =+Tariff!L7 -> 15.3153 | T33: =+Tariff!M7 -> 0
A34: 3.0 kg | B34: =Tariff!E8 -> 8.047325 | D34: =Tariff!F8 -> 9.30215 | F34: =Tariff!G8 -> 9.7669 | H34: =Tariff!G8 -> 9.7669 | J34: =Tariff!H8 -> 10.4515125 | L34: =Tariff!I8 -> 13.0702 | N34: =Tariff!J8 -> 13.724425 | P34: =Tariff!K8 -> 15.7872 | R34: =+Tariff!L8 -> 17.83925 | T34: =+Tariff!M8 -> 0
A35: 3.5 kg | B35: =Tariff!E9 -> 9.2092 | D35: =Tariff!F9 -> 10.6159625 | F35: =Tariff!G9 -> 11.14685 | H35: =Tariff!G9 -> 11.14685 | J35: =Tariff!H9 -> 11.9279875 | L35: =Tariff!I9 -> 14.918475 | N35: =Tariff!J9 -> 15.66565 | P35: =Tariff!K9 -> 18.0197875 | R35: =+Tariff!L9 -> 20.3632 | T35: =+Tariff!M9 -> 0
A36: 4.0 kg | B36: =Tariff!E10 -> 10.371075 | D36: =Tariff!F10 -> 11.929775 | F36: =Tariff!G10 -> 12.5268 | H36: =Tariff!G10 -> 12.5268 | J36: =Tariff!H10 -> 13.4044625 | L36: =Tariff!I10 -> 16.76675 | N36: =Tariff!J10 -> 17.606875 | P36: =Tariff!K10 -> 20.252375 | R36: =+Tariff!L10 -> 22.88715 | T36: =+Tariff!M10 -> 0
A37: 4.5 kg | B37: =Tariff!E11 -> 11.53295 | D37: =Tariff!F11 -> 13.2435875 | F37: =Tariff!G11 -> 13.90675 | H37: =Tariff!G11 -> 13.90675 | J37: =Tariff!H11 -> 14.8809375 | L37: =Tariff!I11 -> 18.615025 | N37: =Tariff!J11 -> 19.5481 | P37: =Tariff!K11 -> 22.4849625 | R37: =+Tariff!L11 -> 25.4111 | T37: =+Tariff!M11 -> 0
A38: 5.0 kg | B38: =Tariff!E12 -> 12.694825 | D38: =Tariff!F12 -> 14.5574 | F38: =Tariff!G12 -> 15.2867 | H38: =Tariff!G12 -> 15.2867 | J38: =Tariff!H12 -> 16.3574125 | L38: =Tariff!I12 -> 20.4633 | N38: =Tariff!J12 -> 21.489325 | P38: =Tariff!K12 -> 24.71755 | R38: =+Tariff!L12 -> 27.93505 | T38: =+Tariff!M12 -> 0
A39: 5.5 kg | B39: =Tariff!E13 -> 13.8567 | D39: =Tariff!F13 -> 15.8712125 | F39: =Tariff!G13 -> 16.66665 | H39: =Tariff!G13 -> 16.66665 | J39: =Tariff!H13 -> 17.8338875 | L39: =Tariff!I13 -> 22.311575 | N39: =Tariff!J13 -> 23.43055 | P39: =Tariff!K13 -> 26.9501375 | R39: =+Tariff!L13 -> 30.459 | T39: =+Tariff!M13 -> 0
A40: 6.0 kg | B40: =Tariff!E14 -> 15.018575 | D40: =Tariff!F14 -> 17.185025 | F40: =Tariff!G14 -> 18.0466 | H40: =Tariff!G14 -> 18.0466 | J40: =Tariff!H14 -> 19.3103625 | L40: =Tariff!I14 -> 24.15985 | N40: =Tariff!J14 -> 25.371775 | P40: =Tariff!K14 -> 29.182725 | R40: =+Tariff!L14 -> 32.98295 | T40: =+Tariff!M14 -> 0
A41: 6.5 kg | B41: =Tariff!E15 -> 16.18045 | D41: =Tariff!F15 -> 18.4988375 | F41: =Tariff!G15 -> 19.42655 | H41: =Tariff!G15 -> 19.42655 | J41: =Tariff!H15 -> 20.7868375 | L41: =Tariff!I15 -> 26.008125 | N41: =Tariff!J15 -> 27.313 | P41: =Tariff!K15 -> 31.4153125 | R41: =+Tariff!L15 -> 35.5069 | T41: =+Tariff!M15 -> 0
A42: 7.0 kg | B42: =Tariff!E16 -> 17.342325 | D42: =Tariff!F16 -> 19.81265 | F42: =Tariff!G16 -> 20.8065 | H42: =Tariff!G16 -> 20.8065 | J42: =Tariff!H16 -> 22.2633125 | L42: =Tariff!I16 -> 27.8564 | N42: =Tariff!J16 -> 29.254225 | P42: =Tariff!K16 -> 33.6479 | R42: =+Tariff!L16 -> 38.03085 | T42: =+Tariff!M16 -> 0
A43: 7.5 kg | B43: =Tariff!E17 -> 18.5042 | D43: =Tariff!F17 -> 21.1264625 | F43: =Tariff!G17 -> 22.18645 | H43: =Tariff!G17 -> 22.18645 | J43: =Tariff!H17 -> 23.7397875 | L43: =Tariff!I17 -> 29.704675 | N43: =Tariff!J17 -> 31.19545 | P43: =Tariff!K17 -> 35.8804875 | R43: =+Tariff!L17 -> 40.5548 | T43: =+Tariff!M17 -> 0
A44: 8.0 kg | B44: =Tariff!E18 -> 19.666075 | D44: =Tariff!F18 -> 22.440275 | F44: =Tariff!G18 -> 23.5664 | H44: =Tariff!G18 -> 23.5664 | J44: =Tariff!H18 -> 25.2162625 | L44: =Tariff!I18 -> 31.55295 | N44: =Tariff!J18 -> 33.136675 | P44: =Tariff!K18 -> 38.113075 | R44: =+Tariff!L18 -> 43.07875 | T44: =+Tariff!M18 -> 0
A45: 8.5 kg | B45: =Tariff!E19 -> 20.82795 | D45: =Tariff!F19 -> 23.7540875 | F45: =Tariff!G19 -> 24.94635 | H45: =Tariff!G19 -> 24.94635 | J45: =Tariff!H19 -> 26.6927375 | L45: =Tariff!I19 -> 33.401225 | N45: =Tariff!J19 -> 35.0779 | P45: =Tariff!K19 -> 40.3456625 | R45: =+Tariff!L19 -> 45.6027 | T45: =+Tariff!M19 -> 0
A46: 9.0 kg | B46: =Tariff!E20 -> 21.989825 | D46: =Tariff!F20 -> 25.0679 | F46: =Tariff!G20 -> 26.3263 | H46: =Tariff!G20 -> 26.3263 | J46: =Tariff!H20 -> 28.1692125 | L46: =Tariff!I20 -> 35.2495 | N46: =Tariff!J20 -> 37.019125 | P46: =Tariff!K20 -> 42.57825 | R46: =+Tariff!L20 -> 48.12665 | T46: =+Tariff!M20 -> 0
A47: 9.5 kg | B47: =Tariff!E21 -> 23.1517 | D47: =Tariff!F21 -> 26.3817125 | F47: =Tariff!G21 -> 27.70625 | H47: =Tariff!G21 -> 27.70625 | J47: =Tariff!H21 -> 29.6456875 | L47: =Tariff!I21 -> 37.097775 | N47: =Tariff!J21 -> 38.96035 | P47: =Tariff!K21 -> 44.8108375 | R47: =+Tariff!L21 -> 50.6506 | T47: =+Tariff!M21 -> 0
A48: 10.0 kg | B48: =Tariff!E22 -> 24.313575 | D48: =Tariff!F22 -> 27.695525 | F48: =Tariff!G22 -> 29.0862 | H48: =Tariff!G22 -> 29.0862 | J48: =Tariff!H22 -> 31.1221625 | L48: =Tariff!I22 -> 38.94605 | N48: =Tariff!J22 -> 40.901575 | P48: =Tariff!K22 -> 47.043425 | R48: =+Tariff!L22 -> 53.17455 | T48: =+Tariff!M22 -> 0
A49: +10KG Add KG | B49: =Tariff!E23 -> 1.96625 | D49: =Tariff!F23 -> 2.22365 | F49: =Tariff!G23 -> 2.334475 | H49: =Tariff!G23 -> 2.334475 | J49: =Tariff!H23 -> 2.498925 | L49: =Tariff!I23 -> 3.128125 | N49: =Tariff!J23 -> 3.28185 | P49: =Tariff!K23 -> 3.778775 | R49: =+Tariff!L23 -> 4.26855 | T49: =+Tariff!M23 -> 0
A50: Remarks/ Additional Information
A57: Requested By
A58: Sales Person | C58: Shaji Joby | I58: Date | N58: Signature
A60: Approvals
A61: Sales Manager | C61: Shaji Joby | G61: Date | L61: Signature
A62: BDM | C62: Christopher Mendes | G62: Date | L62: Signature
A63: Finance Manager | C63: Sanjay Bandale | G63: Date | L63: Signature
A64: CGM, KWT | C64: Shaji George | G64: Date | L64: Signature
A65: Commercial Manager | C65: Shibu George | G65: Date | L65: Signature
A66: Director, IBU | C66: Mohannad M.S. Khayyat | G66: Date | L66: Signature
A67: Sales Coordinator:

Sheet Tariff
D1: TRANSFER RATES TO MAIN SHEET | O1: CASH RATES | Z1: TELESALES TARIFF | AK1: FIELD SALES TARIFF | AV1: SALES MANAGER TARIFF | BG1: GENERAL MANAGER TARIFF - | BR1: CUSTOMIZED TARIFF | CC1: PERSONALIZED TARIFF %
E2: Z1 | F2: Z2 | G2: Z3 | H2: Z4 | I2: Z5 | J2: Z6 | K2: Z7 | L2: Z8 | M2: Z9 | N2: Z10 | P2: Z1 | Q2: Z2 | R2: Z3 | S2: Z4 | T2: Z5 | U2: Z6 | V2: Z7 | W2: Z8 | X2: Z9 | Y2: Z10 | AA2: Z1 | AB2: Z2 | AC2: Z3 | AD2: Z4 | AE2: Z5 | AF2: Z6 | AG2: Z7 | AH2: Z8 | AI2: Z9 | AJ2: Z10 | AL2: Z1 | AM2: Z2 | AN2: Z3 | AO2: Z4 | AP2: Z5 | AQ2: Z6 | AR2: Z7 | AS2: Z8 | AT2: Z9 | AU2: Z10 | AW2: Z1 | AX2: Z2 | AY2: Z3 | AZ2: Z4 | BA2: Z5 | BB2: Z6 | BC2: Z7 | BD2: Z8 | BE2: Z9 | BF2: Z10 | BH2: Z1 | BI2: Z2 | BJ2: Z3 | BK2: Z4 | BL2: Z5 | BM2: Z6 | BN2: Z7 | BO2: Z8 | BP2: Z9 | BQ2: Z10 | BS2: Z1 | BT2: Z2 | BU2: Z3 | BV2: Z4 | BW2: Z5 | BX2: Z6 | BY2: Z7 | BZ2: Z8 | CA2: Z9 | CB2: Z10 | CD2: Z1 | CE2: Z2 | CF2: Z3 | CG2: Z4 | CH2: Z5 | CI2: Z6 | CJ2: Z7 | CK2: Z8 | CL2: Z9 | CM2: Z10
D3: 0.5 | E3: =+E30 -> 5.09795 | F3: =+F30 -> 5.9648875 | G3: 6.2634 | H3: 6.7013375 | I3: 8.376225 | J3: 8.7945 | K3: 10.1154625 | L3: 11.43285 | M3: 0 | N3: 0 | O3: 0.5 | P3: 20.3918 | Q3: 23.85955 | R3: 25.0536 | S3: 26.80535 | T3: 33.5049 | U3: 35.178 | V3: 40.46185 | W3: 45.7314 | X3: 0 | Y3: 0 | Z3: 0.5 | AA3: 13.25467 | AB3: 15.5087075 | AC3: 16.28484 | AD3: 17.4234775 | AE3: 21.778185 | AF3: 22.8657 | AG3: 26.3002025 | AH3: 29.72541 | AI3: 0 | AJ3: 0 | AK3: 0.5 | AL3: 7.13713 | AM3: 8.3508425 | AN3: 8.76876 | AO3: 9.3818725 | AP3: 11.726715 | AQ3: 12.3123 | AR3: 14.1616475 | AS3: 16.00599 | AT3: 0 | AU3: 0 | AV3: 0.5 | AW3: 6.11754 | AX3: 7.157865 | AY3: 7.51608 | AZ3: 8.041605 | BA3: 10.05147 | BB3: 10.5534 | BC3: 12.138555 | BD3: 13.71942 | BE3: 13.8 | BF3: 0 | BG3: 0.5 | BH3: 5.09795 | BI3: 5.9648875 | BJ3: 6.2634 | BK3: 6.7013375 | BL3: 8.376225 | BM3: 8.7945 | BN3: 10.1154625 | BO3: 11.43285 | BP3: 0 | BQ3: 0 | BR3: 0.5 | BS3: =P3-(P3*CD3) -> 20.3918 | BT3: =Q3-(Q3*CE3) -> 23.85955 | BU3: 25.0536 | BV3: 26.80535 | BW3: 33.5049 | BX3: 35.178 | BY3: 40.46185 | BZ3: 45.7314 | CA3: 0 | CB3: 0 | CC3: 0.5 | CD3: 0 | CE3: 0 | CF3: 0 | CG3: 0 | CH3: 0 | CI3: 0 | CJ3: 0 | CK3: 0 | CL3: 0 | CM3: 0
D4: 1 | E4: =+E31 -> 5.544825 | F4: 6.47075 | G4: 6.7942875 | H4: 7.2697625 | I4: 9.08765 | J4: 9.541675 | K4: 10.97525 | L4: 12.4034625 | M4: 0 | N4: 0 | O4: 1 | P4: 22.1793 | Q4: 25.883 | R4: 27.17715 | S4: 29.07905 | T4: 36.3506 | U4: 38.1667 | V4: 43.901 | W4: 49.61385 | X4: 0 | Y4: 0 | Z4: 1 | AA4: 14.416545 | AB4: 16.82395 | AC4: 17.6651475 | AD4: 18.9013825 | AE4: 23.62789 | AF4: 24.808355 | AG4: 28.53565 | AH4: 32.2490025 | AI4: 0 | AJ4: 0 | AK4: 1 | AL4: 7.762755 | AM4: 9.05905 | AN4: 9.5120025 | AO4: 10.1776675 | AP4: 12.72271 | AQ4: 13.358345 | AR4: 15.36535 | AS4: 17.3648475 | AT4: 0 | AU4: 0 | AV4: 1 | AW4: 6.65379 | AX4: 7.7649 | AY4: 8.153145 | AZ4: 8.723715 | BA4: 10.90518 | BB4: 11.45001 | BC4: 13.1703 | BD4: 14.884155 | BE4: 20.4 | BF4: 0 | BG4: 1 | BH4: 5.544825 | BI4: 6.47075 | BJ4: 6.7942875 | BK4: 7.2697625 | BL4: 9.08765 | BM4: 9.541675 | BN4: 10.97525 | BO4: 12.4034625 | BP4: 0 | BQ4: 0 | BR4: 1 | BS4: =P4-(P4*CD4) -> 22.1793 | BT4: 25.883 | BU4: 27.17715 | BV4: 29.07905 | BW4: 36.3506 | BX4: 38.1667 | BY4: 43.901 | BZ4: 49.61385 | CA4: 0 | CB4: 0 | CC4: 1 | CD4: 0 | CE4: 0 | CF4: 0 | CG4: 0 | CH4: 0 | CI4: 0 | CJ4: 0 | CK4: 0 | CL4: 0 | CM4: 0
D5: 1.5 | E5: =+E32 -> 5.9917 | F5: 6.9766125 | G5: 7.325175 | H5: 7.8381875 | I5: 9.799075 | J5: 10.28885 | K5: 11.8350375 | L5: 13.374075 | M5: 0 | N5: 0 | O5: 1.5 | P5: 23.9668 | Q5: 27.90645 | R5: 29.3007 | S5: 31.35275 | T5: 39.1963 | U5: 41.1554 | V5: 47.34015 | W5: 53.4963 | X5: 0 | Y5: 0 | Z5: 1.5 | AA5: 15.57842 | AB5: 18.1391925 | AC5: 19.045455 | AD5: 20.3792875 | AE5: 25.477595 | AF5: 26.75101 | AG5: 30.7710975 | AH5: 34.772595 | AI5: 0 | AJ5: 0 | AK5: 1.5 | AL5: 8.38838 | AM5: 9.7672575 | AN5: 10.255245 | AO5: 10.9734625 | AP5: 13.718705 | AQ5: 14.40439 | AR5: 16.5690525 | AS5: 18.723705 | AT5: 0 | AU5: 0 | AV5: 1.5 | AW5: 7.19004 | AX5: 8.371935 | AY5: 8.79021 | AZ5: 9.405825 | BA5: 11.75889 | BB5: 12.34662 | BC5: 14.202045 | BD5: 16.04889 | BE5: 25.8 | BF5: 0 | BG5: 1.5 | BH5: 5.9917 | BI5: 6.9766125 | BJ5: 7.325175 | BK5: 7.8381875 | BL5: 9.799075 | BM5: 10.28885 | BN5: 11.8350375 | BO5: 13.374075 | BP5: 0 | BQ5: 0 | BR5: 1.5 | BS5: 23.9668 | BT5: 27.90645 | BU5: 29.3007 | BV5: 31.35275 | BW5: 39.1963 | BX5: 41.1554 | BY5: 47.34015 | BZ5: 53.4963 | CA5: 0 | CB5: 0 | CC5: 1.5 | CD5: 0 | CE5: 0 | CF5: 0 | CG5: 0 | CH5: 0 | CI5: 0 | CJ5: 0 | CK5: 0 | CL5: 0 | CM5: 0
D6: 2 | E6: =+E33 -> 6.438575 | F6: 7.482475 | G6: 7.8560625 | H6: 8.4066125 | I6: 10.5105 | J6: 11.036025 | K6: 12.694825 | L6: 14.3446875 | M6: 0 | N6: 0 | O6: 2 | P6: 25.7543 | Q6: 29.9299 | R6: 31.42425 | S6: 33.62645 | T6: 42.042 | U6: 44.1441 | V6: 50.7793 | W6: 57.37875 | X6: 0 | Y6: 0 | Z6: 2 | AA6: 16.740295 | AB6: 19.454435 | AC6: 20.4257625 | AD6: 21.8571925 | AE6: 27.3273 | AF6: 28.693665 | AG6: 33.006545 | AH6: 37.2961875 | AI6: 0 | AJ6: 0 | AK6: 2 | AL6: 9.014005 | AM6: 10.475465 | AN6: 10.9984875 | AO6: 11.7692575 | AP6: 14.7147 | AQ6: 15.450435 | AR6: 17.772755 | AS6: 20.0825625 | AT6: 0 | AU6: 0 | AV6: 2 | AW6: 7.72629 | AX6: 8.97897 | AY6: 9.427275 | AZ6: 10.087935 | BA6: 12.6126 | BB6: 13.24323 | BC6: 15.23379 | BD6: 17.213625 | BE6: 31.2 | BF6: 0 | BG6: 2 | BH6: 6.438575 | BI6: 7.482475 | BJ6: 7.8560625 | BK6: 8.4066125 | BL6: 10.5105 | BM6: 11.036025 | BN6: 12.694825 | BO6: 14.3446875 | BP6: 0 | BQ6: 0 | BR6: 2 | BS6: 25.7543 | BT6: 29.9299 | BU6: 31.42425 | BV6: 33.62645 | BW6: 42.042 | BX6: 44.1441 | BY6: 50.7793 | BZ6: 57.37875 | CA6: 0 | CB6: 0 | CC6: 2 | CD6: 0 | CE6: 0 | CF6: 0 | CG6: 0 | CH6: 0 | CI6: 0 | CJ6: 0 | CK6: 0 | CL6: 0 | CM6: 0
D7: 2.5 | E7: =+E34 -> 6.88545 | F7: 7.9883375 | G7: 8.38695 | H7: 8.9750375 | I7: 11.221925 | J7: 11.7832 | K7: 13.5546125 | L7: 15.3153 | M7: 0 | N7: 0 | O7: 2.5 | P7: 27.5418 | Q7: 31.95335 | R7: 33.5478 | S7: 35.90015 | T7: 44.8877 | U7: 47.1328 | V7: 54.21845 | W7: 61.2612 | X7: 0 | Y7: 0 | Z7: 2.5 | AA7: 17.90217 | AB7: 20.7696775 | AC7: 21.80607 | AD7: 23.3350975 | AE7: 29.177005 | AF7: 30.63632 | AG7: 35.2419925 | AH7: 39.81978 | AI7: 0 | AJ7: 0 | AK7: 2.5 | AL7: 9.63963 | AM7: 11.1836725 | AN7: 11.74173 | AO7: 12.5650525 | AP7: 15.710695 | AQ7: 16.49648 | AR7: 18.9764575 | AS7: 21.44142 | AT7: 0 | AU7: 0 | AV7: 2.5 | AW7: 8.26254 | AX7: 9.586005 | AY7: 10.06434 | AZ7: 10.770045 | BA7: 13.46631 | BB7: 14.13984 | BC7: 16.265535 | BD7: 18.37836 | BE7: 15 | BF7: 0 | BG7: 2.5 | BH7: 6.88545 | BI7: 7.9883375 | BJ7: 8.38695 | BK7: 8.9750375 | BL7: 11.221925 | BM7: 11.7832 | BN7: 13.5546125 | BO7: 15.3153 | BP7: 0 | BQ7: 0 | BR7: 2.5 | BS7: 27.5418 | BT7: 31.95335 | BU7: 33.5478 | BV7: 35.90015 | BW7: 44.8877 | BX7: 47.1328 | BY7: 54.21845 | BZ7: 61.2612 | CA7: 0 | CB7: 0 | CC7: 2.5 | CD7: 0 | CE7: 0 | CF7: 0 | CG7: 0 | CH7: 0 | CI7: 0 | CJ7: 0 | CK7: 0 | CL7: 0 | CM7: 0
D8: 3 | E8: =+E35 -> 8.047325 | F8: 9.30215 | G8: 9.7669 | H8: 10.4515125 | I8: 13.0702 | J8: 13.724425 | K8: 15.7872 | L8: 17.83925 | M8: 0 | N8: 0 | O8: 3 | P8: 32.1893 | Q8: 37.2086 | R8: 39.0676 | S8: 41.80605 | T8: 52.2808 | U8: 54.8977 | V8: 63.1488 | W8: 71.357 | X8: 0 | Y8: 0 | Z8: 3 | AA8: 20.923045 | AB8: 24.18559 | AC8: 25.39394 | AD8: 27.1739325 | AE8: 33.98252 | AF8: 35.683505 | AG8: 41.04672 | AH8: 46.38205 | AI8: 0 | AJ8: 0 | AK8: 3 | AL8: 11.266255 | AM8: 13.02301 | AN8: 13.67366 | AO8: 14.6321175 | AP8: 18.29828 | AQ8: 19.214195 | AR8: 22.10208 | AS8: 24.97495 | AT8: 0 | AU8: 0 | AV8: 3 | AW8: 9.65679 | AX8: 11.16258 | AY8: 11.72028 | AZ8: 12.541815 | BA8: 15.68424 | BB8: 16.46931 | BC8: 18.94464 | BD8: 21.4071 | BE8: 21.6 | BF8: 0 | BG8: 3 | BH8: 8.047325 | BI8: 9.30215 | BJ8: 9.7669 | BK8: 10.4515125 | BL8: 13.0702 | BM8: 13.724425 | BN8: 15.7872 | BO8: 17.83925 | BP8: 0 | BQ8: 0 | BR8: 3 | BS8: 32.1893 | BT8: 37.2086 | BU8: 39.0676 | BV8: 41.80605 | BW8: 52.2808 | BX8: 54.8977 | BY8: 63.1488 | BZ8: 71.357 | CA8: 0 | CB8: 0 | CC8: 3 | CD8: 0 | CE8: 0 | CF8: 0 | CG8: 0 | CH8: 0 | CI8: 0 | CJ8: 0 | CK8: 0 | CL8: 0 | CM8: 0
D9: 3.5 | E9: =+E36 -> 9.2092 | F9: 10.6159625 | G9: 11.14685 | H9: 11.9279875 | I9: 14.918475 | J9: 15.66565 | K9: 18.0197875 | L9: 20.3632 | M9: 0 | N9: 0 | O9: 3.5 | P9: 36.8368 | Q9: 42.46385 | R9: 44.5874 | S9: 47.71195 | T9: 59.6739 | U9: 62.6626 | V9: 72.07915 | W9: 81.4528 | X9: 0 | Y9: 0 | Z9: 3.5 | AA9: 23.94392 | AB9: 27.6015025 | AC9: 28.98181 | AD9: 31.0127675 | AE9: 38.788035 | AF9: 40.73069 | AG9: 46.8514475 | AH9: 52.94432 | AI9: 0 | AJ9: 0 | AK9: 3.5 | AL9: 12.89288 | AM9: 14.8623475 | AN9: 15.60559 | AO9: 16.6991825 | AP9: 20.885865 | AQ9: 21.93191 | AR9: 25.2277025 | AS9: 28.50848 | AT9: 0 | AU9: 0 | AV9: 3.5 | AW9: 11.05104 | AX9: 12.739155 | AY9: 13.37622 | AZ9: 14.313585 | BA9: 17.90217 | BB9: 18.79878 | BC9: 21.623745 | BD9: 24.43584 | BE9: 28.8 | BF9: 0 | BG9: 3.5 | BH9: 9.2092 | BI9: 10.6159625 | BJ9: 11.14685 | BK9: 11.9279875 | BL9: 14.918475 | BM9: 15.66565 | BN9: 18.0197875 | BO9: 20.3632 | BP9: 0 | BQ9: 0 | BR9: 3.5 | BS9: 36.8368 | BT9: 42.46385 | BU9: 44.5874 | BV9: 47.71195 | BW9: 59.6739 | BX9: 62.6626 | BY9: 72.07915 | BZ9: 81.4528 | CA9: 0 | CB9: 0 | CC9: 3.5 | CD9: 0 | CE9: 0 | CF9: 0 | CG9: 0 | CH9: 0 | CI9: 0 | CJ9: 0 | CK9: 0 | CL9: 0 | CM9: 0
D10: 4 | E10: =+E37 -> 10.371075 | F10: 11.929775 | G10: 12.5268 | H10: 13.4044625 | I10: 16.76675 | J10: 17.606875 | K10: 20.252375 | L10: 22.88715 | M10: 0 | N10: 0 | O10: 4 | P10: 41.4843 | Q10: 47.7191 | R10: 50.1072 | S10: 53.61785 | T10: 67.067 | U10: 70.4275 | V10: 81.0095 | W10: 91.5486 | X10: 0 | Y10: 0 | Z10: 4 | AA10: 26.964795 | AB10: 31.017415 | AC10: 32.56968 | AD10: 34.8516025 | AE10: 43.59355 | AF10: 45.777875 | AG10: 52.656175 | AH10: 59.50659 | AI10: 0 | AJ10: 0 | AK10: 4 | AL10: 14.519505 | AM10: 16.701685 | AN10: 17.53752 | AO10: 18.7662475 | AP10: 23.47345 | AQ10: 24.649625 | AR10: 28.353325 | AS10: 32.04201 | AT10: 0 | AU10: 0 | AV10: 4 | AW10: 12.44529 | AX10: 14.31573 | AY10: 15.03216 | AZ10: 16.085355 | BA10: 20.1201 | BB10: 21.12825 | BC10: 24.30285 | BD10: 27.46458 | BE10: 35.4 | BF10: 0 | BG10: 4 | BH10: 10.371075 | BI10: 11.929775 | BJ10: 12.5268 | BK10: 13.4044625 | BL10: 16.76675 | BM10: 17.606875 | BN10: 20.252375 | BO10: 22.88715 | BP10: 0 | BQ10: 0 | BR10: 4 | BS10: 41.4843 | BT10: 47.7191 | BU10: 50.1072 | BV10: 53.61785 | BW10: 67.067 | BX10: 70.4275 | BY10: 81.0095 | BZ10: 91.5486 | CA10: 0 | CB10: 0 | CC10: 4 | CD10: 0 | CE10: 0 | CF10: 0 | CG10: 0 | CH10: 0 | CI10: 0 | CJ10: 0 | CK10: 0 | CL10: 0 | CM10: 0
D11: 4.5 | E11: =+E38 -> 11.53295 | F11: 13.2435875 | G11: 13.90675 | H11: 14.8809375 | I11: 18.615025 | J11: 19.5481 | K11: 22.4849625 | L11: 25.4111 | M11: 0 | N11: 0 | O11: 4.5 | P11: 46.1318 | Q11: 52.97435 | R11: 55.627 | S11: 59.52375 | T11: 74.4601 | U11: 78.1924 | V11: 89.93985 | W11: 101.6444 | X11: 0 | Y11: 0 | Z11: 4.5 | AA11: 29.98567 | AB11: 34.4333275 | AC11: 36.15755 | AD11: 38.6904375 | AE11: 48.399065 | AF11: 50.82506 | AG11: 58.4609025 | AH11: 66.06886 | AI11: 0 | AJ11: 0 | AK11: 4.5 | AL11: 16.14613 | AM11: 18.5410225 | AN11: 19.46945 | AO11: 20.8333125 | AP11: 26.061035 | AQ11: 27.36734 | AR11: 31.4789475 | AS11: 35.57554 | AT11: 0 | AU11: 0 | AV11: 4.5 | AW11: 13.83954 | AX11: 15.892305 | AY11: 16.6881 | AZ11: 17.857125 | BA11: 22.33803 | BB11: 23.45772 | BC11: 26.981955 | BD11: 30.49332 | BE11: 42 | BF11: 0 | BG11: 4.5 | BH11: 11.53295 | BI11: 13.2435875 | BJ11: 13.90675 | BK11: 14.8809375 | BL11: 18.615025 | BM11: 19.5481 | BN11: 22.4849625 | BO11: 25.4111 | BP11: 0 | BQ11: 0 | BR11: 4.5 | BS11: 46.1318 | BT11: 52.97435 | BU11: 55.627 | BV11: 59.52375 | BW11: 74.4601 | BX11: 78.1924 | BY11: 89.93985 | BZ11: 101.6444 | CA11: 0 | CB11: 0 | CC11: 4.5 | CD11: 0 | CE11: 0 | CF11: 0 | CG11: 0 | CH11: 0 | CI11: 0 | CJ11: 0 | CK11: 0 | CL11: 0 | CM11: 0
D12: 5 | E12: =+E39 -> 12.694825 | F12: 14.5574 | G12: 15.2867 | H12: 16.3574125 | I12: 20.4633 | J12: 21.489325 | K12: 24.71755 | L12: 27.93505 | M12: 0 | N12: 0 | O12: 5 | P12: 50.7793 | Q12: 58.2296 | R12: 61.1468 | S12: 65.42965 | T12: 81.8532 | U12: 85.9573 | V12: 98.8702 | W12: 111.7402 | X12: 0 | Y12: 0 | Z12: 5 | AA12: 33.006545 | AB12: 37.84924 | AC12: 39.74542 | AD12: 42.5292725 | AE12: 53.20458 | AF12: 55.872245 | AG12: 64.26563 | AH12: 72.63113 | AI12: 0 | AJ12: 0 | AK12: 5 | AL12: 17.772755 | AM12: 20.38036 | AN12: 21.40138 | AO12: 22.9003775 | AP12: 28.64862 | AQ12: 30.085055 | AR12: 34.60457 | AS12: 39.10907 | AT12: 0 | AU12: 0 | AV12: 5 | AW12: 15.23379 | AX12: 17.46888 | AY12: 18.34404 | AZ12: 19.628895 | BA12: 24.55596 | BB12: 25.78719 | BC12: 29.66106 | BD12: 33.52206 | BE12: 49.2 | BF12: 0 | BG12: 5 | BH12: 12.694825 | BI12: 14.5574 | BJ12: 15.2867 | BK12: 16.3574125 | BL12: 20.4633 | BM12: 21.489325 | BN12: 24.71755 | BO12: 27.93505 | BP12: 0 | BQ12: 0 | BR12: 5 | BS12: 50.7793 | BT12: 58.2296 | BU12: 61.1468 | BV12: 65.42965 | BW12: 81.8532 | BX12: 85.9573 | BY12: 98.8702 | BZ12: 111.7402 | CA12: 0 | CB12: 0 | CC12: 5 | CD12: 0 | CE12: 0 | CF12: 0 | CG12: 0 | CH12: 0 | CI12: 0 | CJ12: 0 | CK12: 0 | CL12: 0 | CM12: 0
D13: 5.5 | E13: =+E40 -> 13.8567 | F13: 15.8712125 | G13: 16.66665 | H13: 17.8338875 | I13: 22.311575 | J13: 23.43055 | K13: 26.9501375 | L13: 30.459 | M13: 0 | N13: 0 | O13: 5.5 | P13: 55.4268 | Q13: 63.48485 | R13: 66.6666 | S13: 71.33555 | T13: 89.2463 | U13: 93.7222 | V13: 107.80055 | W13: 121.836 | X13: 0 | Y13: 0 | Z13: 5.5 | AA13: 36.02742 | AB13: 41.2651525 | AC13: 43.33329 | AD13: 46.3681075 | AE13: 58.010095 | AF13: 60.91943 | AG13: 70.0703575 | AH13: 79.1934 | AI13: 0 | AJ13: 0 | AK13: 5.5 | AL13: 19.39938 | AM13: 22.2196975 | AN13: 23.33331 | AO13: 24.9674425 | AP13: 31.236205 | AQ13: 32.80277 | AR13: 37.7301925 | AS13: 42.6426 | AT13: 0 | AU13: 0 | AV13: 5.5 | AW13: 16.62804 | AX13: 19.045455 | AY13: 19.99998 | AZ13: 21.400665 | BA13: 26.77389 | BB13: 28.11666 | BC13: 32.340165 | BD13: 36.5508 | BE13: 55.8 | BF13: 0 | BG13: 5.5 | BH13: 13.8567 | BI13: 15.8712125 | BJ13: 16.66665 | BK13: 17.8338875 | BL13: 22.311575 | BM13: 23.43055 | BN13: 26.9501375 | BO13: 30.459 | BP13: 0 | BQ13: 0 | BR13: 5.5 | BS13: 55.4268 | BT13: 63.48485 | BU13: 66.6666 | BV13: 71.33555 | BW13: 89.2463 | BX13: 93.7222 | BY13: 107.80055 | BZ13: 121.836 | CA13: 0 | CB13: 0 | CC13: 5.5 | CD13: 0 | CE13: 0 | CF13: 0 | CG13: 0 | CH13: 0 | CI13: 0 | CJ13: 0 | CK13: 0 | CL13: 0 | CM13: 0
D14: 6 | E14: =+E41 -> 15.018575 | F14: 17.185025 | G14: 18.0466 | H14: 19.3103625 | I14: 24.15985 | J14: 25.371775 | K14: 29.182725 | L14: 32.98295 | M14: 0 | N14: 0 | O14: 6 | P14: 60.0743 | Q14: 68.7401 | R14: 72.1864 | S14: 77.24145 | T14: 96.6394 | U14: 101.4871 | V14: 116.7309 | W14: 131.9318 | X14: 0 | Y14: 0 | Z14: 6 | AA14: 39.048295 | AB14: 44.681065 | AC14: 46.92116 | AD14: 50.2069425 | AE14: 62.81561 | AF14: 65.966615 | AG14: 75.875085 | AH14: 85.75567 | AI14: 0 | AJ14: 0 | AK14: 6 | AL14: 21.026005 | AM14: 24.059035 | AN14: 25.26524 | AO14: 27.0345075 | AP14: 33.82379 | AQ14: 35.520485 | AR14: 40.855815 | AS14: 46.17613 | AT14: 0 | AU14: 0 | AV14: 6 | AW14: 18.02229 | AX14: 20.62203 | AY14: 21.65592 | AZ14: 23.172435 | BA14: 28.99182 | BB14: 30.44613 | BC14: 35.01927 | BD14: 39.57954 | BE14: 62.4 | BF14: 0 | BG14: 6 | BH14: 15.018575 | BI14: 17.185025 | BJ14: 18.0466 | BK14: 19.3103625 | BL14: 24.15985 | BM14: 25.371775 | BN14: 29.182725 | BO14: 32.98295 | BP14: 0 | BQ14: 0 | BR14: 6 | BS14: 60.0743 | BT14: 68.7401 | BU14: 72.1864 | BV14: 77.24145 | BW14: 96.6394 | BX14: 101.4871 | BY14: 116.7309 | BZ14: 131.9318 | CA14: 0 | CB14: 0 | CC14: 6 | CD14: 0 | CE14: 0 | CF14: 0 | CG14: 0 | CH14: 0 | CI14: 0 | CJ14: 0 | CK14: 0 | CL14: 0 | CM14: 0
D15: 6.5 | E15: =+E42 -> 16.18045 | F15: 18.4988375 | G15: 19.42655 | H15: 20.7868375 | I15: 26.008125 | J15: 27.313 | K15: 31.4153125 | L15: 35.5069 | M15: 0 | N15: 0 | O15: 6.5 | P15: 64.7218 | Q15: 73.99535 | R15: 77.7062 | S15: 83.14735 | T15: 104.0325 | U15: 109.252 | V15: 125.66125 | W15: 142.0276 | X15: 0 | Y15: 0 | Z15: 6.5 | AA15: 42.06917 | AB15: 48.0969775 | AC15: 50.50903 | AD15: 54.0457775 | AE15: 67.621125 | AF15: 71.0138 | AG15: 81.6798125 | AH15: 92.31794 | AI15: 0 | AJ15: 0 | AK15: 6.5 | AL15: 22.65263 | AM15: 25.8983725 | AN15: 27.19717 | AO15: 29.1015725 | AP15: 36.411375 | AQ15: 38.2382 | AR15: 43.9814375 | AS15: 49.70966 | AT15: 0 | AU15: 0 | AV15: 6.5 | AW15: 19.41654 | AX15: 22.198605 | AY15: 23.31186 | AZ15: 24.944205 | BA15: 31.20975 | BB15: 32.7756 | BC15: 37.698375 | BD15: 42.60828 | BE15: 69.6 | BF15: 0 | BG15: 6.5 | BH15: 16.18045 | BI15: 18.4988375 | BJ15: 19.42655 | BK15: 20.7868375 | BL15: 26.008125 | BM15: 27.313 | BN15: 31.4153125 | BO15: 35.5069 | BP15: 0 | BQ15: 0 | BR15: 6.5 | BS15: 64.7218 | BT15: 73.99535 | BU15: 77.7062 | BV15: 83.14735 | BW15: 104.0325 | BX15: 109.252 | BY15: 125.66125 | BZ15: 142.0276 | CA15: 0 | CB15: 0 | CC15: 6.5 | CD15: 0 | CE15: 0 | CF15: 0 | CG15: 0 | CH15: 0 | CI15: 0 | CJ15: 0 | CK15: 0 | CL15: 0 | CM15: 0
D16: 7 | E16: =+E43 -> 17.342325 | F16: 19.81265 | G16: 20.8065 | H16: 22.2633125 | I16: 27.8564 | J16: 29.254225 | K16: 33.6479 | L16: 38.03085 | M16: 0 | N16: 0 | O16: 7 | P16: 69.3693 | Q16: 79.2506 | R16: 83.226 | S16: 89.05325 | T16: 111.4256 | U16: 117.0169 | V16: 134.5916 | W16: 152.1234 | X16: 0 | Y16: 0 | Z16: 7 | AA16: 45.090045 | AB16: 51.51289 | AC16: 54.0969 | AD16: 57.8846125 | AE16: 72.42664 | AF16: 76.060985 | AG16: 87.48454 | AH16: 98.88021 | AI16: 0 | AJ16: 0 | AK16: 7 | AL16: 24.279255 | AM16: 27.73771 | AN16: 29.1291 | AO16: 31.1686375 | AP16: 38.99896 | AQ16: 40.955915 | AR16: 47.10706 | AS16: 53.24319 | AT16: 0 | AU16: 0 | AV16: 7 | AW16: 20.81079 | AX16: 23.77518 | AY16: 24.9678 | AZ16: 26.715975 | BA16: 33.42768 | BB16: 35.10507 | BC16: 40.37748 | BD16: 45.63702 | BE16: 76.2 | BF16: 0 | BG16: 7 | BH16: 17.342325 | BI16: 19.81265 | BJ16: 20.8065 | BK16: 22.2633125 | BL16: 27.8564 | BM16: 29.254225 | BN16: 33.6479 | BO16: 38.03085 | BP16: 0 | BQ16: 0 | BR16: 7 | BS16: 69.3693 | BT16: 79.2506 | BU16: 83.226 | BV16: 89.05325 | BW16: 111.4256 | BX16: 117.0169 | BY16: 134.5916 | BZ16: 152.1234 | CA16: 0 | CB16: 0 | CC16: 7 | CD16: 0 | CE16: 0 | CF16: 0 | CG16: 0 | CH16: 0 | CI16: 0 | CJ16: 0 | CK16: 0 | CL16: 0 | CM16: 0
D17: 7.5 | E17: =+E44 -> 18.5042 | F17: 21.1264625 | G17: 22.18645 | H17: 23.7397875 | I17: 29.704675 | J17: 31.19545 | K17: 35.8804875 | L17: 40.5548 | M17: 0 | N17: 0 | O17: 7.5 | P17: 74.0168 | Q17: 84.50585 | R17: 88.7458 | S17: 94.95915 | T17: 118.8187 | U17: 124.7818 | V17: 143.52195 | W17: 162.2192 | X17: 0 | Y17: 0 | Z17: 7.5 | AA17: 48.11092 | AB17: 54.9288025 | AC17: 57.68477 | AD17: 61.7234475 | AE17: 77.232155 | AF17: 81.10817 | AG17: 93.2892675 | AH17: 105.44248 | AI17: 0 | AJ17: 0 | AK17: 7.5 | AL17: 25.90588 | AM17: 29.5770475 | AN17: 31.06103 | AO17: 33.2357025 | AP17: 41.586545 | AQ17: 43.67363 | AR17: 50.2326825 | AS17: 56.77672 | AT17: 0 | AU17: 0 | AV17: 7.5 | AW17: 22.20504 | AX17: 25.351755 | AY17: 26.62374 | AZ17: 28.487745 | BA17: 35.64561 | BB17: 37.43454 | BC17: 43.056585 | BD17: 48.66576 | BE17: 82.8 | BF17: 0 | BG17: 7.5 | BH17: 18.5042 | BI17: 21.1264625 | BJ17: 22.18645 | BK17: 23.7397875 | BL17: 29.704675 | BM17: 31.19545 | BN17: 35.8804875 | BO17: 40.5548 | BP17: 0 | BQ17: 0 | BR17: 7.5 | BS17: 74.0168 | BT17: 84.50585 | BU17: 88.7458 | BV17: 94.95915 | BW17: 118.8187 | BX17: 124.7818 | BY17: 143.52195 | BZ17: 162.2192 | CA17: 0 | CB17: 0 | CC17: 7.5 | CD17: 0 | CE17: 0 | CF17: 0 | CG17: 0 | CH17: 0 | CI17: 0 | CJ17: 0 | CK17: 0 | CL17: 0 | CM17: 0
D18: 8 | E18: =+E45 -> 19.666075 | F18: 22.440275 | G18: 23.5664 | H18: 25.2162625 | I18: 31.55295 | J18: 33.136675 | K18: 38.113075 | L18: 43.07875 | M18: 0 | N18: 0 | O18: 8 | P18: 78.6643 | Q18: 89.7611 | R18: 94.2656 | S18: 100.86505 | T18: 126.2118 | U18: 132.5467 | V18: 152.4523 | W18: 172.315 | X18: 0 | Y18: 0 | Z18: 8 | AA18: 51.131795 | AB18: 58.344715 | AC18: 61.27264 | AD18: 65.5622825 | AE18: 82.03767 | AF18: 86.155355 | AG18: 99.093995 | AH18: 112.00475 | AI18: 0 | AJ18: 0 | AK18: 8 | AL18: 27.532505 | AM18: 31.416385 | AN18: 32.99296 | AO18: 35.3027675 | AP18: 44.17413 | AQ18: 46.391345 | AR18: 53.358305 | AS18: 60.31025 | AT18: 0 | AU18: 0 | AV18: 8 | AW18: 23.59929 | AX18: 26.92833 | AY18: 28.27968 | AZ18: 30.259515 | BA18: 37.86354 | BB18: 39.76401 | BC18: 45.73569 | BD18: 51.6945 | BE18: 90 | BF18: 0 | BG18: 8 | BH18: 19.666075 | BI18: 22.440275 | BJ18: 23.5664 | BK18: 25.2162625 | BL18: 31.55295 | BM18: 33.136675 | BN18: 38.113075 | BO18: 43.07875 | BP18: 0 | BQ18: 0 | BR18: 8 | BS18: 78.6643 | BT18: 89.7611 | BU18: 94.2656 | BV18: 100.86505 | BW18: 126.2118 | BX18: 132.5467 | BY18: 152.4523 | BZ18: 172.315 | CA18: 0 | CB18: 0 | CC18: 8 | CD18: 0 | CE18: 0 | CF18: 0 | CG18: 0 | CH18: 0 | CI18: 0 | CJ18: 0 | CK18: 0 | CL18: 0 | CM18: 0
D19: 8.5 | E19: =+E46 -> 20.82795 | F19: 23.7540875 | G19: 24.94635 | H19: 26.6927375 | I19: 33.401225 | J19: 35.0779 | K19: 40.3456625 | L19: 45.6027 | M19: 0 | N19: 0 | O19: 8.5 | P19: 83.3118 | Q19: 95.01635 | R19: 99.7854 | S19: 106.77095 | T19: 133.6049 | U19: 140.3116 | V19: 161.38265 | W19: 182.4108 | X19: 0 | Y19: 0 | Z19: 8.5 | AA19: 54.15267 | AB19: 61.7606275 | AC19: 64.86051 | AD19: 69.4011175 | AE19: 86.843185 | AF19: 91.20254 | AG19: 104.8987225 | AH19: 118.56702 | AI19: 0 | AJ19: 0 | AK19: 8.5 | AL19: 29.15913 | AM19: 33.2557225 | AN19: 34.92489 | AO19: 37.3698325 | AP19: 46.761715 | AQ19: 49.10906 | AR19: 56.4839275 | AS19: 63.84378 | AT19: 0 | AU19: 0 | AV19: 8.5 | AW19: 24.99354 | AX19: 28.504905 | AY19: 29.93562 | AZ19: 32.031285 | BA19: 40.08147 | BB19: 42.09348 | BC19: 48.414795 | BD19: 54.72324 | BE19: 96.6 | BF19: 0 | BG19: 8.5 | BH19: 20.82795 | BI19: 23.7540875 | BJ19: 24.94635 | BK19: 26.6927375 | BL19: 33.401225 | BM19: 35.0779 | BN19: 40.3456625 | BO19: 45.6027 | BP19: 0 | BQ19: 0 | BR19: 8.5 | BS19: 83.3118 | BT19: =Q19-(Q19*CE19) -> 95.01635 | BU19: =R19-(R19*CF19) -> 99.7854 | BV19: =S19-(S19*CG19) -> 106.77095 | BW19: =T19-(T19*CH19) -> 133.6049 | BX19: =U19-(U19*CI19) -> 140.3116 | BY19: =V19-(V19*CJ19) -> 161.38265 | BZ19: =W19-(W19*CK19) -> 182.4108 | CA19: =X19-(X19*CL19) -> 0 | CB19: =Y19-(Y19*CM19) -> 0 | CC19: 8.5 | CD19: 0 | CE19: 0 | CF19: 0 | CG19: 0 | CH19: 0 | CI19: 0 | CJ19: 0 | CK19: 0 | CL19: 0 | CM19: 0
D20: 9 | E20: =+E47 -> 21.989825 | F20: 25.0679 | G20: 26.3263 | H20: 28.1692125 | I20: 35.2495 | J20: 37.019125 | K20: 42.57825 | L20: 48.12665 | M20: 0 | N20: 0 | O20: 9 | P20: 87.9593 | Q20: 100.2716 | R20: 105.3052 | S20: 112.67685 | T20: 140.998 | U20: 148.0765 | V20: 170.313 | W20: 192.5066 | X20: 0 | Y20: 0 | Z20: 9 | AA20: 57.173545 | AB20: 65.17654 | AC20: 68.44838 | AD20: 73.2399525 | AE20: 91.6487 | AF20: 96.249725 | AG20: 110.70345 | AH20: 125.12929 | AI20: 0 | AJ20: 0 | AK20: 9 | AL20: 30.785755 | AM20: 35.09506 | AN20: 36.85682 | AO20: 39.4368975 | AP20: 49.3493 | AQ20: 51.826775 | AR20: 59.60955 | AS20: 67.37731 | AT20: 0 | AU20: 0 | AV20: 9 | AW20: 26.38779 | AX20: 30.08148 | AY20: 31.59156 | AZ20: 33.803055 | BA20: 42.2994 | BB20: 44.42295 | BC20: 51.0939 | BD20: 57.75198 | BE20: 103.2 | BF20: 0 | BG20: 9 | BH20: 21.989825 | BI20: 25.0679 | BJ20: 26.3263 | BK20: 28.1692125 | BL20: 35.2495 | BM20: 37.019125 | BN20: 42.57825 | BO20: 48.12665 | BP20: 0 | BQ20: 0 | BR20: 9 | BS20: 87.9593 | BT20: 100.2716 | BU20: 105.3052 | BV20: 112.67685 | BW20: 140.998 | BX20: 148.0765 | BY20: 170.313 | BZ20: 192.5066 | CA20: 0 | CB20: 0 | CC20: 9 | CD20: 0 | CE20: 0 | CF20: 0 | CG20: 0 | CH20: 0 | CI20: 0 | CJ20: 0 | CK20: 0 | CL20: 0 | CM20: 0
D21: 9.5 | E21: =+E48 -> 23.1517 | F21: 26.3817125 | G21: 27.70625 | H21: 29.6456875 | I21: 37.097775 | J21: 38.96035 | K21: 44.8108375 | L21: 50.6506 | M21: 0 | N21: 0 | O21: 9.5 | P21: 92.6068 | Q21: 105.52685 | R21: 110.825 | S21: 118.58275 | T21: 148.3911 | U21: 155.8414 | V21: 179.24335 | W21: 202.6024 | X21: 0 | Y21: 0 | Z21: 9.5 | AA21: 60.19442 | AB21: 68.5924525 | AC21: 72.03625 | AD21: 77.0787875 | AE21: 96.454215 | AF21: 101.29691 | AG21: 116.5081775 | AH21: 131.69156 | AI21: 0 | AJ21: 0 | AK21: 9.5 | AL21: 32.41238 | AM21: 36.9343975 | AN21: 38.78875 | AO21: 41.5039625 | AP21: 51.936885 | AQ21: 54.54449 | AR21: 62.7351725 | AS21: 70.91084 | AT21: 0 | AU21: 0 | AV21: 9.5 | AW21: 27.78204 | AX21: 31.658055 | AY21: 33.2475 | AZ21: 35.574825 | BA21: 44.51733 | BB21: 46.75242 | BC21: 53.773005 | BD21: 60.78072 | BE21: 110.4 | BF21: 0 | BG21: 9.5 | BH21: 23.1517 | BI21: 26.3817125 | BJ21: 27.70625 | BK21: 29.6456875 | BL21: 37.097775 | BM21: 38.96035 | BN21: 44.8108375 | BO21: 50.6506 | BP21: 0 | BQ21: 0 | BR21: 9.5 | BS21: 92.6068 | BT21: 105.52685 | BU21: 110.825 | BV21: 118.58275 | BW21: 148.3911 | BX21: 155.8414 | BY21: 179.24335 | BZ21: 202.6024 | CA21: 0 | CB21: 0 | CC21: 9.5 | CD21: 0 | CE21: 0 | CF21: 0 | CG21: 0 | CH21: 0 | CI21: 0 | CJ21: 0 | CK21: 0 | CL21: 0 | CM21: 0
D22: 10 | E22: =+E49 -> 24.313575 | F22: 27.695525 | G22: 29.0862 | H22: 31.1221625 | I22: 38.94605 | J22: 40.901575 | K22: 47.043425 | L22: 53.17455 | M22: 0 | N22: 0 | O22: 10 | P22: 97.2543 | Q22: 110.7821 | R22: 116.3448 | S22: 124.48865 | T22: 155.7842 | U22: 163.6063 | V22: 188.1737 | W22: 212.6982 | X22: 0 | Y22: 0 | Z22: 10 | AA22: 63.215295 | AB22: 72.008365 | AC22: 75.62412 | AD22: 80.9176225 | AE22: 101.25973 | AF22: 106.344095 | AG22: 122.312905 | AH22: 138.25383 | AI22: 0 | AJ22: 0 | AK22: 10 | AL22: 34.039005 | AM22: 38.773735 | AN22: 40.72068 | AO22: 43.5710275 | AP22: 54.52447 | AQ22: 57.262205 | AR22: 65.860795 | AS22: 74.44437 | AT22: 0 | AU22: 0 | AV22: 10 | AW22: 29.17629 | AX22: 33.23463 | AY22: 34.90344 | AZ22: 37.346595 | BA22: 46.73526 | BB22: 49.08189 | BC22: 56.45211 | BD22: 63.80946 | BE22: 117 | BF22: 0 | BG22: 10 | BH22: 24.313575 | BI22: 27.695525 | BJ22: 29.0862 | BK22: 31.1221625 | BL22: 38.94605 | BM22: 40.901575 | BN22: 47.043425 | BO22: 53.17455 | BP22: 0 | BQ22: 0 | BR22: 10 | BS22: 97.2543 | BT22: 110.7821 | BU22: 116.3448 | BV22: 124.48865 | BW22: 155.7842 | BX22: 163.6063 | BY22: 188.1737 | BZ22: 212.6982 | CA22: 0 | CB22: 0 | CC22: 10 | CD22: 0 | CE22: 0 | CF22: 0 | CG22: 0 | CH22: 0 | CI22: 0 | CJ22: 0 | CK22: 0 | CL22: 0 | CM22: 0
D23: 10.1KG-30KG Add 1KG | E23: =+E50 -> 1.96625 | F23: 2.22365 | G23: 2.334475 | H23: 2.498925 | I23: 3.128125 | J23: 3.28185 | K23: 3.778775 | L23: 4.26855 | M23: 0 | N23: 0 | O23: 10.1KG-30KG Add 1KG | P23: 7.865 | Q23: 8.8946 | R23: 9.3379 | S23: 9.9957 | T23: 12.5125 | U23: 13.1274 | V23: 15.1151 | W23: 17.0742 | X23: 0 | Y23: 0 | Z23: 10.1KG-30KG Add 1KG | AA23: 5.11225 | AB23: 5.78149 | AC23: 6.069635 | AD23: 6.497205 | AE23: 8.133125 | AF23: 8.53281 | AG23: 9.824815 | AH23: 11.09823 | AI23: 0 | AJ23: 0 | AK23: 10.1KG-30KG Add 1KG | AL23: 2.75275 | AM23: 3.11311 | AN23: 3.268265 | AO23: 3.498495 | AP23: 4.379375 | AQ23: 4.59459 | AR23: 5.290285 | AS23: 5.97597 | AT23: 0 | AU23: 0 | AV23: 10.1KG-30KG Add 1KG | AW23: 2.3595 | AX23: 2.66838 | AY23: 2.80137 | AZ23: 2.99871 | BA23: 3.75375 | BB23: 3.93822 | BC23: 4.53453 | BD23: 5.12226 | BE23: 123.6 | BF23: 0 | BG23: 10.1KG-30KG Add 1KG | BH23: 1.96625 | BI23: 2.22365 | BJ23: 2.334475 | BK23: 2.498925 | BL23: 3.128125 | BM23: 3.28185 | BN23: 3.778775 | BO23: 4.26855 | BP23: 0 | BQ23: 0 | BR23: 10.1KG-30KG Add 1KG | BS23: 7.865 | BT23: 8.8946 | BU23: 9.3379 | BV23: 9.9957 | BW23: 12.5125 | BX23: 13.1274 | BY23: 15.1151 | BZ23: 17.0742 | CA23: 0 | CB23: 0 | CC23: 10.1KG-30KG Add 1KG | CD23: 0 | CE23: 0 | CF23: 0 | CG23: 0 | CH23: 0 | CI23: 0 | CJ23: 0 | CK23: 0 | CL23: 0 | CM23: 0
D24: 30.1KG-70KG Add 1KG | E24: =+E51 -> 0 | F24: 0 | G24: 0 | H24: 0 | I24: 0 | J24: 0 | K24: 0 | L24: 0 | M24: 0 | N24: 0 | O24: 30.1KG-70KG Add 1KG | P24: 7.54325 | Q24: 8.52995 | R24: 8.95895 | S24: 9.58815 | T24: 11.9834 | U24: 12.584 | V24: 14.4716 | W24: 16.3592 | X24: 0 | Y24: 0 | Z24: 30.1KG-70KG Add 1KG | AA24: 4.9031125 | AB24: 5.5444675 | AC24: 5.8233175 | AD24: 6.2322975 | AE24: 7.78921 | AF24: 8.1796 | AG24: 9.40654 | AH24: 10.63348 | AI24: 0 | AJ24: 0 | AK24: 30.1KG-70KG Add 1KG | AL24: 2.6401375 | AM24: 2.9854825 | AN24: 3.1356325 | AO24: 3.3558525 | AP24: 4.19419 | AQ24: 4.4044 | AR24: 5.06506 | AS24: 5.72572 | AT24: 0 | AU24: 0 | AV24: 30.1KG-70KG Add 1KG | AW24: 2.262975 | AX24: 2.558985 | AY24: 2.687685 | AZ24: 2.876445 | BA24: 3.59502 | BB24: 3.7752 | BC24: 4.34148 | BD24: 4.90776 | BE24: 130.8 | BF24: 0 | BG24: 30.1KG-70KG Add 1KG | BH24: 1.8858125 | BI24: 2.1324875 | BJ24: 2.2397375 | BK24: 2.3970375 | BL24: 2.99585 | BM24: 3.146 | BN24: 3.6179 | BO24: 4.0898 | BP24: 0 | BQ24: 0 | BR24: 30.1KG-70KG Add 1KG | BS24: 7.54325 | BT24: 8.52995 | BU24: 8.95895 | BV24: 9.58815 | BW24: 11.9834 | BX24: 12.584 | BY24: 14.4716 | BZ24: 16.3592 | CA24: 0 | CB24: 0 | CC24: 30.1KG-70KG Add 1KG | CD24: 0 | CE24: 0 | CF24: 0 | CG24: 0 | CH24: 0 | CI24: 0 | CJ24: 0 | CK24: 0 | CL24: 0 | CM24: 0
D25: Multiplier Rate per kilo | E25: =+E52 -> 0 | F25: 0 | G25: 0 | H25: 0 | I25: 0 | J25: 0 | K25: 0 | L25: 0 | M25: 0 | N25: 0 | O25: Multiplier Rate per kilo | P25: 7.94365 | Q25: 8.97325 | R25: 9.4237 | S25: 10.0815 | T25: 12.5983 | U25: 13.2275 | V25: 15.20805 | W25: 17.19575 | X25: 0 | Y25: 0 | Z25: Multiplier Rate per kilo | AA25: 5.1633725 | AB25: 5.8326125 | AC25: 6.125405 | AD25: 6.552975 | AE25: 8.188895 | AF25: 8.597875 | AG25: 9.8852325 | AH25: 11.1772375 | AI25: 0 | AJ25: 0 | AK25: Multiplier Rate per kilo | AL25: 2.7802775 | AM25: 3.1406375 | AN25: 3.298295 | AO25: 3.528525 | AP25: 4.409405 | AQ25: 4.629625 | AR25: 5.3228175 | AS25: 6.0185125 | AT25: 0 | AU25: 0 | AV25: Multiplier Rate per kilo | AW25: 2.383095 | AX25: 2.691975 | AY25: 2.82711 | AZ25: 3.02445 | BA25: 3.77949 | BB25: 3.96825 | BC25: 4.562415 | BD25: 5.158725 | BE25: 137.4 | BF25: 0 | BG25: Multiplier Rate per kilo | BH25: 1.9859125 | BI25: 2.2433125 | BJ25: 2.355925 | BK25: 2.520375 | BL25: 3.149575 | BM25: 3.306875 | BN25: 3.8020125 | BO25: 4.2989375 | BP25: 0 | BQ25: 0 | BR25: Multiplier Rate per kilo | BS25: 7.94365 | BT25: 8.97325 | BU25: 9.4237 | BV25: 10.0815 | BW25: 12.5983 | BX25: 13.2275 | BY25: 15.20805 | BZ25: 17.19575 | CA25: 0 | CB25: 0 | CC25: Multiplier Rate per kilo | CD25: 0 | CE25: 0 | CF25: 0 | CG25: 0 | CH25: 0 | CI25: 0 | CJ25: 0 | CK25: 0 | CL25: 0 | CM25: 0
E26: =+E53 -> KWT/OB/GMT | P26: KWT/OB/CST | AA26: KWT/OB/TST | AL26: KWT/OB/FST | AW26: KWT/OB/SMT | BH26: KWT/OB/GMT | BS26: KWT/OB/PTA
D27: TRANSFER RATES TO MAIN SHEET | O27: CASH RATES | Z27: TELESALES TARIFF | AK27: FIELD SALES TARIFF | AV27: SALES MANAGER TARIFF | BG27: GENERAL MANAGER TARIFF
D28: TRANSFER RATES TO MAIN SHEET
E29: Z1 | F29: Z2 | G29: Z3 | H29: Z4 | I29: Z5 | J29: Z6 | K29: Z7 | L29: Z8 | M29: Z9 | N29: Z10
D30: 0.5 | E30: 5.09795 | F30: 5.9648875 | G30: 6.2634 | H30: 6.7013375 | I30: 8.376225 | J30: 8.7945 | K30: 10.1154625 | L30: 11.43285 | M30: 0 | N30: 0
D31: 1 | E31: 5.544825 | F31: 6.47075 | G31: 6.7942875 | H31: 7.2697625 | I31: 9.08765 | J31: 9.541675 | K31: 10.97525 | L31: 12.4034625 | M31: 0 | N31: 0
D32: 1.5 | E32: 5.9917 | F32: 6.9766125 | G32: 7.325175 | H32: 7.8381875 | I32: 9.799075 | J32: 10.28885 | K32: 11.8350375 | L32: 13.374075 | M32: 0 | N32: 0
D33: 2 | E33: 6.438575 | F33: 7.482475 | G33: 7.8560625 | H33: 8.4066125 | I33: 10.5105 | J33: 11.036025 | K33: 12.694825 | L33: 14.3446875 | M33: 0 | N33: 0
D34: 2.5 | E34: 6.88545 | F34: 7.9883375 | G34: 8.38695 | H34: 8.9750375 | I34: 11.221925 | J34: 11.7832 | K34: 13.5546125 | L34: 15.3153 | M34: 0 | N34: 0
D35: 3 | E35: 8.047325 | F35: 9.30215 | G35: 9.7669 | H35: 10.4515125 | I35: 13.0702 | J35: 13.724425 | K35: 15.7872 | L35: 17.83925 | M35: 0 | N35: 0
D36: 3.5 | E36: 9.2092 | F36: 10.6159625 | G36: 11.14685 | H36: 11.9279875 | I36: 14.918475 | J36: 15.66565 | K36: 18.0197875 | L36: 20.3632 | M36: 0 | N36: 0
D37: 4 | E37: 10.371075 | F37: 11.929775 | G37: 12.5268 | H37: 13.4044625 | I37: 16.76675 | J37: 17.606875 | K37: 20.252375 | L37: 22.88715 | M37: 0 | N37: 0
D38: 4.5 | E38: 11.53295 | F38: 13.2435875 | G38: 13.90675 | H38: 14.8809375 | I38: 18.615025 | J38: 19.5481 | K38: 22.4849625 | L38: 25.4111 | M38: 0 | N38: 0
D39: 5 | E39: 12.694825 | F39: 14.5574 | G39: 15.2867 | H39: 16.3574125 | I39: 20.4633 | J39: 21.489325 | K39: 24.71755 | L39: 27.93505 | M39: 0 | N39: 0
D40: 5.5 | E40: 13.8567 | F40: 15.8712125 | G40: 16.66665 | H40: 17.8338875 | I40: 22.311575 | J40: 23.43055 | K40: 26.9501375 | L40: 30.459 | M40: 0 | N40: 0
D41: 6 | E41: 15.018575 | F41: 17.185025 | G41: 18.0466 | H41: 19.3103625 | I41: 24.15985 | J41: 25.371775 | K41: 29.182725 | L41: 32.98295 | M41: 0 | N41: 0
D42: 6.5 | E42: 16.18045 | F42: 18.4988375 | G42: 19.42655 | H42: 20.7868375 | I42: 26.008125 | J42: 27.313 | K42: 31.4153125 | L42: 35.5069 | M42: 0 | N42: 0
D43: 7 | E43: 17.342325 | F43: 19.81265 | G43: 20.8065 | H43: 22.2633125 | I43: 27.8564 | J43: 29.254225 | K43: 33.6479 | L43: 38.03085 | M43: 0 | N43: 0
D44: 7.5 | E44: 18.5042 | F44: 21.1264625 | G44: 22.18645 | H44: 23.7397875 | I44: 29.704675 | J44: 31.19545 | K44: 35.8804875 | L44: 40.5548 | M44: 0 | N44: 0
D45: 8 | E45: 19.666075 | F45: 22.440275 | G45: 23.5664 | H45: 25.2162625 | I45: 31.55295 | J45: 33.136675 | K45: 38.113075 | L45: 43.07875 | M45: 0 | N45: 0
D46: 8.5 | E46: 20.82795 | F46: 23.7540875 | G46: 24.94635 | H46: 26.6927375 | I46: 33.401225 | J46: 35.0779 | K46: 40.3456625 | L46: 45.6027 | M46: 0 | N46: 0
D47: 9 | E47: 21.989825 | F47: 25.0679 | G47: 26.3263 | H47: 28.1692125 | I47: 35.2495 | J47: 37.019125 | K47: 42.57825 | L47: 48.12665 | M47: 0 | N47: 0
D48: 9.5 | E48: 23.1517 | F48: 26.3817125 | G48: 27.70625 | H48: 29.6456875 | I48: 37.097775 | J48: 38.96035 | K48: 44.8108375 | L48: 50.6506 | M48: 0 | N48: 0
D49: 10 | E49: 24.313575 | F49: 27.695525 | G49: 29.0862 | H49: 31.1221625 | I49: 38.94605 | J49: 40.901575 | K49: 47.043425 | L49: 53.17455 | M49: 0 | N49: 0
D50: 10.1KG-30KG Add 1KG | E50: 1.96625 | F50: 2.22365 | G50: 2.334475 | H50: 2.498925 | I50: 3.128125 | J50: 3.28185 | K50: 3.778775 | L50: 4.26855 | M50: 0 | N50: 0
D51: 30.1KG-70KG Add 1KG | E51: 0 | F51: 0 | G51: 0 | H51: 0 | I51: 0 | J51: 0 | K51: 0 | L51: 0 | M51: 0 | N51: 0
D52: Multiplier Rate per kilo | E52: 0 | F52: 0 | G52: 0 | H52: 0 | I52: 0 | J52: 0 | K52: 0 | L52: 0 | M52: 0 | N52: 0
E53: =BH26 -> KWT/OB/GMT
D54: GENERAL MANAGER TARIFF

Sheet Export & Import ZONE
A3: EXPORT ZONING & IMPORT ZONING
A4: Countries | B4: Zone | C4: Countries | D4: Zone | E4: Countries | F4: Zone | G4: Countries | H4: Zone
A5: Afghanistan | B5: 2 | C5: Dominican Rep. | D5: 8 | E5: Libya | F5: 8 | G5: San Marino | H5: 8
A6: Albania | B6: 4 | C6: Ecuador | D6: 8 | E6: Liechtenstein | F6: 4 | G6: Sao Tome And Principe (ST) | H6: 8
A7: Algeria | B7: 8 | C7: Egypt | D7: 2 | E7: Lithuania | F7: 7 | G7: Saudi Arabia | H7: 1
A8: American Samoa | B8: 8 | C8: El Salvador | D8: 8 | E8: Luxembourg | F8: 4 | G8: Senegal | H8: 8
A9: Andorra | B9: 8 | C9: Eritrea | D9: 8 | E9: Macau SAR China | F9: 8 | G9: Serbia, Rep. Of | H9: 4
A10: Angola | B10: 8 | C10: Estonia | D10: 7 | E10: Madagascar | F10: 8 | G10: Seychelles | H10: 8
A11: Anguilla | B11: 8 | C11: Eswatini | D11: 8 | E11: Malawi | F11: 8 | G11: Sierra Leone | H11: 8
A12: Antigua | B12: 8 | C12: Ethiopia | D12: 8 | E12: Malaysia | F12: 6 | G12: Singapore | H12: 6
A13: Argentina | B13: 8 | C13: Falkland Islands | D13: 8 | E13: Maldives | F13: 8 | G13: Slovakia | H13: 4
A14: Armenia | B14: 7 | C14: Faroe Islands | D14: 8 | E14: Mali | F14: 8 | G14: Slovenia | H14: 4
A15: Aruba | B15: 8 | C15: Fiji | D15: 8 | E15: Malta | F15: 4 | G15: Solomon Islands | H15: 8
A16: Australia | B16: 6 | C16: Finland | D16: 4 | E16: Mariana Islands | F16: 8 | G16: Somalia | H16: 8
A17: Austria | B17: 4 | C17: France | D17: 4 | E17: Marshall Islands | F17: 8 | G17: Somaliland, Rep Of | H17: 8
A18: Azerbaijan | B18: 7 | C18: French Guyana | D18: 8 | E18: Martinique | F18: 8 | G18: South Africa | H18: 8
A19: Bahamas | B19: 8 | C19: Gabon | D19: 8 | E19: Mauritania | F19: 8 | G19: South Sudan | H19: 8
A20: Bahrain | B20: 1 | C20: Gambia | D20: 8 | E20: Mauritius | F20: 8 | G20: Spain | H20: 4
A21: Bangladesh | B21: 3 | C21: Georgia | D21: 7 | E21: Mayotte | F21: 8 | G21: Sri Lanka | H21: 3
A22: Barbados | B22: 8 | C22: Germany | D22: 4 | E22: Mexico | F22: 5 | G22: St. Barthelemy | H22: 8
A23: Belarus | B23: 7 | C23: Ghana | D23: 8 | E23: Micronesia | F23: 8 | G23: St. Eustatius | H23: 8
A24: Belgium | B24: 4 | C24: Gibraltar | D24: 7 | E24: Moldova, Rep. Of | F24: 7 | G24: St. Kitts | H24: 8
A25: Belize | B25: 8 | C25: Greece | D25: 4 | E25: Monaco | F25: 4 | G25: St. Lucia | H25: 8
A26: Benin | B26: 8 | C26: Greenland | D26: 8 | E26: Mongolia | F26: 7 | G26: St. Maarten | H26: 8
A27: Bermuda | B27: 8 | C27: Grenada | D27: 8 | E27: Montenegro, Rep Of | F27: 7 | G27: St. Vincent | H27: 8
A28: Bhutan | B28: 6 | C28: Guadeloupe | D28: 8 | E28: Montserrat | F28: 8 | G28: Sudan | H28: 8
A29: Bolivia | B29: 8 | C29: Guam | D29: 8 | E29: Morocco | F29: 8 | G29: Suriname | H29: 8
A30: Bonaire | B30: 8 | C30: Guatemala | D30: 8 | E30: Mozambique | F30: 8 | G30: Sweden | H30: 4
A31: Bosnia & Herzegovina | B31: 4 | C31: Guernsey | D31: 4 | E31: Myanmar | F31: 6 | G31: Switzerland | H31: 4
A32: Botswana | B32: 8 | C32: Guinea Rep. | D32: 8 | E32: Namibia | F32: 8 | G32: Syria | H32: 8
A33: Brazil | B33: 8 | C33: Guinea-Bissau | D33: 8 | E33: Nauru, Rep. Of | F33: 8 | G33: Tahiti | H33: 8
A34: Brunei | B34: 6 | C34: Guinea-Equatorial | D34: 8 | E34: Nepal | F34: 3 | G34: Taiwan | H34: 6
A35: Bulgaria | B35: 4 | C35: Guyana (British) | D35: 8 | E35: Netherlands, The | F35: 4 | G35: Tajikistan | H35: 7
A36: Burkina Faso | B36: 8 | C36: Haiti | D36: 8 | E36: Nevis | F36: 8 | G36: Tanzania | H36: 8
A37: Burundi | B37: 8 | C37: Honduras | D37: 8 | E37: New Caledonia | F37: 8 | G37: Thailand | H37: 6
A38: Cambodia | B38: 6 | C38: Hong Kong SAR China | D38: 6 | E38: New Zealand | F38: 6 | G38: Timor-Leste | H38: 8
A39: Cameroon | B39: 8 | C39: Hungary | D39: 4 | E39: Nicaragua | F39: 8 | G39: Togo | H39: 8
A40: Canada | B40: 5 | C40: Iceland | D40: 8 | E40: Niger | F40: 8 | G40: Tonga | H40: 8
A41: Canary Islands, The | B41: 7 | C41: India | D41: 3 | E41: Nigeria | F41: 8 | G41: Trinidad And Tobago | H41: 8
A42: Cape Verde | B42: 8 | C42: Indonesia | D42: 6 | E42: Niue | F42: 8 | G42: Tunisia | H42: 8
A43: Cayman Islands | B43: 8 | C43: Iran | D43: 8 | E43: North Macedonia | F43: 4 | G43: Turkey | H43: 4
A44: Central African Rep | B44: 8 | C44: Iraq | D44: 2 | E44: Norway | F44: 4 | G44: Turkmenistan | H44: 7
A45: Chad | B45: 8 | C45: Ireland, Rep. Of | D45: 4 | E45: Oman | F45: 2 | G45: Turks & Caicos | H45: 8
A46: Chile | B46: 8 | C46: Italy | D46: 4 | E46: Pakistan | F46: 3 | G46: Tuvalu | H46: 8
A47: China | B47: 6 | C47: Jamaica | D47: 8 | E47: Palau | F47: 8 | G47: USA | H47: 5
A48: Colombia | B48: 8 | C48: Japan | D48: 6 | E48: Panama | F48: 8 | G48: Uganda | H48: 8
A49: Comoros | B49: 8 | C49: Jersey | D49: 4 | E49: Papua New Guinea | F49: 6 | G49: Ukraine | H49: 7
A50: Congo | B50: 8 | C50: Jordan | D50: 2 | E50: Paraguay | F50: 8 | G50: United Arab Emirates | H50: 1
A51: Congo, DPR | B51: 8 | C51: Kazakhstan | D51: 7 | E51: Peru | F51: 8 | G51: United Kingdom | H51: 4
A52: Cook Islands | B52: 8 | C52: Kenya | D52: 8 | E52: Philippines, The | F52: 6 | G52: Uruguay | H52: 8
A53: Costa Rica | B53: 8 | C53: Kiribati | D53: 8 | E53: Poland | F53: 4 | G53: Uzbekistan | H53: 7
A54: Cote D Ivoire | B54: 8 | C54: Korea, Rep. Of | D54: 6 | E54: Portugal | F54: 4 | G54: Vanuatu | H54: 8
A55: Croatia | B55: 4 | C55: Korea, D.P.R Of | D55: 8 | E55: Puerto Rico | F55: 8 | G55: Vatican City | H55: 4
A56: Cuba | B56: 8 | C56: Kosovo | D56: 8 | E56: Qatar | F56: 2 | G56: Venezuela | H56: 8
A57: Curacao | B57: 8 | C57: Kyrgyzstan | D57: 7 | E57: Reunion, Island Of | F57: 8 | G57: Vietnam | H57: 6
A58: Cyprus | B58: 4 | C58: Laos | D58: 6 | E58: Romania | F58: 4 | G58: Virgin Islands-British | H58: 8
A59: Czech Rep., The | B59: 4 | C59: Latvia | D59: 7 | E59: Russian Federation | F59: 7 | G59: Virgin Islands-US | H59: 8
A60: Denmark | B60: 4 | C60: Lebanon | D60: 2 | E60: Rwanda | F60: 8 | G60: Yemen, Rep. Of | H60: 8
A61: Djibouti | B61: 8 | C61: Lesotho | D61: 8 | E61: Saint Helena | F61: 8 | G61: Zambia | H61: 8
A62: Dominica | B62: 8 | C62: Liberia | D62: 8 | E62: Samoa | F62: 8 | G62: Zimbabwe | H62: 8
